fUSD/lending_fUSD_20250629
["ID","MTS","AMOUNT","RATE_DAILY","PERIOD"]
[368516320,1751194288143,-3811.43,0.00028493,3]
[368516321,1751194288153,-1354.26,0.00028493,3]
[368516322,1751194288163,-585.551072,0.00028493,3]
[368516323,1751194288172,-671.44,0.00028493,3]
[368516324,1751194288182,-1567.24,0.00028493,3]
[368516325,1751194288192,-1471.91,0.00028493,3]
[368516326,1751194288202,-490.0,0.00028493,3]
[368516327,1751194288212,-490.0,0.00028493,3]
[368516328,1751194288222,-8384.64,0.00028493,3]
[368516329,1751194288232,-401.574256,0.00028493,3]
[368516330,1751194288241,-410.400602,0.00028493,3]
[368516331,1751194288252,-2859.9,0.00028493,3]
[368516332,1751194288261,-583.43,0.00028493,3]
[368516333,1751194288271,-1275.82,0.00028493,3]
[368516334,1751194288281,-490.0,0.00028493,3]
[368516335,1751194288290,-1218.96,0.00028493,3]
[368516336,1751194288300,-942.64,0.00028493,3]
[368516337,1751194288310,-490.0,0.00028493,3]
[368516338,1751194288320,-564.99,0.00028493,3]
[368516339,1751194288331,-2671.04,0.00028493,3]
[368516340,1751194288342,-490.0,0.00028493,3]
[368516341,1751194288353,-490.0,0.00028493,3]
[368516342,1751194288364,-1387.28,0.00028493,3]
[368516343,1751194288375,-1639.16,0.00028493,3]
[368516344,1751194288385,-2549.36,0.00028493,3]
[368516345,1751194288394,-490.0,0.00028493,3]
[368516346,1751194288404,-490.0,0.00028493,3]
[368516347,1751194288414,-490.0,0.00028493,3]
[368516348,1751194288424,-2657.31,0.00028493,3]
[368516349,1751194288434,-760.82,0.00028493,3]
[368516350,1751194288444,-853.61,0.00028493,3]
[368516351,1751194288455,-990.85,0.00028493,3]
[368516352,1751194288464,-490.0,0.00028493,3]
[368516353,1751194288476,-543.89,0.00028493,3]
[368516354,1751194288487,-523.02,0.00028493,3]
[368516355,1751194288497,-490.0,0.00028493,3]
[368516356,1751194288507,-1634.17,0.00028493,3]
[368516357,1751194288516,-888.23,0.00028493,3]
[368516358,1751194288526,-359.48083,0.00028493,3]
[368516359,1751194288535,-1835.93,0.00028493,3]
[368516360,1751194288545,-1671.08,0.00028493,3]
[368516361,1751194288555,-488.44764,0.00028493,3]
[368516362,1751194288565,-490.0,0.00028493,3]
[368516363,1751194288575,-1461.04,0.00028493,3]
[368516364,1751194288585,-4544.23,0.00028493,3]
[368516365,1751194288594,-1479.81,0.00028493,3]
[368516366,1751194288604,-490.0,0.00028493,3]
[368516367,1751194288614,-490.0,0.00028493,3]
[368516368,1751194288623,-490.0,0.00028493,3]
[368516369,1751194288634,-490.0,0.00028493,3]
[368516370,1751194288644,-490.0,0.00028493,3]
[368516371,1751194288656,-517.92,0.00028493,3]
[368516372,1751194288667,-1735.89,0.00028493,3]
[368516373,1751194288678,-3742.15,0.00028493,3]
[368516374,1751194288688,-2334.39,0.00028493,3]
[368516375,1751194288698,-1221.22,0.00028493,3]
[368516376,1751194288708,-3469.82,0.00028493,3]
[368516377,1751194288718,-1554.46,0.00028493,3]
[368516378,1751194288728,-1709.39,0.00028493,3]
[368516379,1751194288738,-490.0,0.00028493,3]
[368516380,1751194288747,-1302.99,0.00028493,3]
[368516381,1751194288757,-490.0,0.00028493,3]
[368516382,1751194288767,-342.462824,0.00028493,3]
[368516383,1751194288778,-490.0,0.00028493,3]
[368516384,1751194288788,-490.0,0.00028493,3]
[368516385,1751194288798,-490.0,0.00028493,3]
[368516386,1751194288809,-621.54,0.00028493,3]
[368516387,1751194288818,-1449.85,0.00028493,3]
[368516388,1751194288828,-403.83972,0.00028493,3]
[368516389,1751194288839,-1404.73,0.00028493,3]
[368516390,1751194288848,-2739.35,0.00028493,3]
[368516391,1751194288858,-1147.69,0.00028493,3]
[368516392,1751194288868,-1983.22,0.00028493,3]
[368516393,1751194288878,-677.47,0.00028493,3]
[368516394,1751194288888,-490.0,0.00028493,3]
[368516395,1751194288899,-490.0,0.00028493,3]
[368516396,1751194288909,-2990.15,0.00028493,3]
[368516397,1751194288919,-490.0,0.00028493,3]
[368516398,1751194288928,-1337.18,0.00028493,3]
[368516399,1751194288939,-2817.39,0.00028493,3]
[368516400,1751194288948,-552.49,0.00028493,3]
[368516401,1751194288958,-1850.59,0.00028493,3]
[368516402,1751194288970,-1361.21,0.00028493,3]
[368516403,1751194288981,-3507.44,0.00028493,3]
[368516404,1751194288991,-2114.83,0.00028493,3]
[368516405,1751194289001,-490.0,0.00028493,3]
[368516406,1751194289011,-810.52,0.00028493,3]
[368516407,1751194289021,-493.48430566,0.00028493,3]
[368516408,1751194289031,-1952.59,0.00028493,3]
[368516409,1751194289040,-314.286784,0.00028493,3]
[368516410,1751194289051,-335.340847,0.00028493,3]
[368516411,1751194289061,-1714.23,0.00028493,3]
[368516412,1751194289071,-1796.3,0.00028493,3]
[368516413,1751194289081,-169.16211917,0.00028493,3]
[368516414,1751194289091,-490.0,0.00028493,3]
[368516415,1751194289100,-578.48,0.00028493,3]
[368516416,1751194289111,-1032.52,0.00028493,3]
[368516417,1751194289341,-818.2,0.00028493,3]
[368516418,1751194289351,-1547.54,0.00028493,3]
[368516419,1751194289361,-5334.23,0.00028493,3]
[368516420,1751194289370,-1491.58,0.00028493,3]
[368516421,1751194289379,-490.0,0.00028493,3]
[368516422,1751194289388,-490.0,0.00028493,3]
[368516423,1751194289398,-384.83,0.00028493,3]
[368516424,1751194289408,-1968.49,0.00028493,3]
[368516425,1751194289420,-517.94,0.00028493,3]
[368516426,1751194289432,-1256.05,0.00028493,3]
[368516427,1751194289442,-490.0,0.00028493,3]
[368516428,1751194289452,-21312.98,0.00028493,3]
[368516429,1751194289462,-490.0,0.00028493,3]
[368516430,1751194289472,-335.341798,0.00028493,3]
[368516431,1751194289482,-600.66,0.00028493,3]
[368516432,1751194289491,-2796.12,0.00028493,3]
[368516433,1751194289500,-1287.96,0.00028493,3]
[368516434,1751194289510,-306.44245,0.00028493,3]
[368516435,1751194289520,-1335.87,0.00028493,3]
[368516436,1751194289530,-201.00320199,0.00028493,3]
[368516437,1751194289539,-1183.3,0.00028493,3]
[368516438,1751194289549,-3221.52,0.00028493,3]
[368516439,1751194289558,-399.03884,0.00028493,3]
[368516440,1751194289567,-490.0,0.00028493,3]
[368516441,1751194289577,-490.0,0.00028493,3]
[368516442,1751194289587,-744.85,0.00028493,3]
[368516443,1751194289596,-8244.69,0.00028493,3]
[368516444,1751194289606,-490.0,0.00028493,3]
[368516445,1751194289615,-1410.0,0.00028493,3]
[368516446,1751194289624,-490.0,0.00028493,3]
[368516447,1751194289634,-4501.21,0.00028493,3]
[368516448,1751194289644,-490.0,0.00028493,3]
[368516449,1751194289653,-717.96,0.00028493,3]
[368516450,1751194289663,-14024.58,0.00028493,3]
[368516451,1751194289673,-537.13,0.00028493,3]
[368516452,1751194289683,-1613.25,0.00028493,3]
[368516453,1751194289692,-3474.16,0.00028493,3]
[368516454,1751194289701,-2350.54,0.00028493,3]
[368516455,1751194289711,-9463.52,0.00028493,3]
[368516456,1751194289720,-537.29,0.00028493,3]
[368516457,1751194289730,-2017.18,0.00028493,3]
[368516458,1751194289739,-546.12,0.00028493,3]
[368516459,1751194289749,-594.99,0.00028493,3]
[368516460,1751194289759,-490.0,0.00028493,3]
[368516461,1751194289769,-650.77,0.00028493,3]
[368516462,1751194289779,-352.26964,0.00028493,3]
[368516463,1751194289788,-1108.16,0.00028493,3]
[368516464,1751194289798,-713.87,0.00028493,3]
[368516465,1751194289807,-490.0,0.00028493,3]
[368516466,1751194289817,-334.44413,0.00028493,3]
[368516467,1751194289826,-1560.06,0.00028493,3]
[368516468,1751194289836,-497.98,0.00028493,3]
[368516469,1751194289845,-2002.91,0.00028493,3]
[368516470,1751194289856,-644.91,0.00028493,3]
[368516471,1751194289865,-1166.54,0.00028493,3]
[368516472,1751194289875,-1691.47,0.00028493,3]
[368516473,1751194289885,-495.564615,0.00028493,3]
[368516474,1751194289895,-1184.84,0.00028493,3]
[368516475,1751194289905,-490.0,0.00028493,3]
[368516476,1751194289914,-1252.49,0.00028493,3]
[368516477,1751194289924,-2480.54,0.00028493,3]
[368516478,1751194289935,-11015.29,0.00028493,3]
[368516479,1751194289945,-990.59,0.00028493,3]
[368516480,1751194289955,-490.0,0.00028493,3]
[368516481,1751194289965,-2199.22,0.00028493,3]
[368516482,1751194289979,-652.43,0.00028493,3]
[368516483,1751194289988,-2658.27,0.00028493,3]
[368516484,1751194289998,-490.0,0.00028493,3]
[368516485,1751194290007,-1167.89,0.00028493,3]
[368516486,1751194290018,-490.13,0.00028493,3]
[368516487,1751194290027,-490.0,0.00028493,3]
[368516488,1751194290036,-521.1,0.00028493,3]
[368516489,1751194290046,-431.942577,0.00028493,3]
[368516490,1751194290056,-3083.1,0.00028493,3]
[368516491,1751194290066,-424.113485,0.00028493,3]
[368516492,1751194290075,-2246.22,0.00028493,3]
[368516493,1751194290084,-600.16,0.00028493,3]
[368516494,1751194290093,-846.78,0.00028493,3]
[368516495,1751194290102,-1366.99,0.00028493,3]
[368516496,1751194290111,-471.14444918,0.00028493,3]
[368516497,1751194290120,-1602.03,0.00028493,3]
[368516498,1751194290130,-1589.64,0.00028493,3]
[368516499,1751194290139,-490.0,0.00028493,3]
[368516500,1751194290149,-1698.91,0.00028493,3]
[368516501,1751194290158,-1905.99,0.00028493,3]
[368516502,1751194290167,-604.22,0.00028493,3]
[368516503,1751194290176,-546.79,0.00028493,3]
[368516504,1751194290185,-490.0,0.00028493,3]
[368516505,1751194290194,-5253.68,0.00028493,3]
[368516506,1751194290203,-1139.22,0.00028493,3]
[368516507,1751194290213,-580.446544,0.00028493,3]
[368516508,1751194290222,-1140.25,0.00028493,3]
[368516509,1751194290232,-490.0,0.00028493,3]
[368516510,1751194290242,-1617.52,0.00028493,3]
[368516511,1751194290251,-519.66,0.00028493,3]
[368516512,1751194290261,-1421.13,0.00028493,3]
[368516513,1751194290270,-2798.55,0.00028493,3]
[368516514,1751194290280,-924.39,0.00028493,3]
[368516515,1751194290289,-490.0,0.00028493,3]
[368516516,1751194290299,-3246.95,0.00028493,3]
[368516517,1751194290308,-1691.2,0.00028493,3]
[368516518,1751194290318,-5131.41,0.00028493,3]
[368516519,1751194290328,-490.0,0.00028493,3]
[368516520,1751194290338,-490.0,0.00028493,3]
[368516521,1751194290347,-1558.36,0.00028493,3]
[368516522,1751194290357,-992.92,0.00028493,3]
[368516523,1751194290367,-490.0,0.00028493,3]
[368516524,1751194290376,-532.14186917,0.00028493,3]
[368516525,1751194290386,-500.283145,0.00028493,3]
[368516526,1751194290395,-1147.15,0.00028493,3]
[368516527,1751194290404,-490.0,0.00028493,3]
[368516528,1751194290414,-300.0,0.00028493,2]
[368516529,1751194290423,-490.0,0.00028493,3]
[368516530,1751194290433,-473.68,0.00028493,3]
[368516531,1751194290442,-851.3,0.00028493,3]
[368516532,1751194290452,-573.82,0.00028493,3]
[368516533,1751194290461,-496.03829097,0.00028493,3]
[368516534,1751194290471,-1928.26,0.00028493,3]
[368516535,1751194290480,-551.905913,0.00028493,3]
[368516536,1751194290489,-490.0,0.00028493,3]
[368516537,1751194290498,-187.43,0.00028493,2]
[368516538,1751194290507,-311.1,0.00028502,2]
[368516539,1751194290517,-215.0738,0.00028502,2]
[368516540,1751194290526,-678.2515787,0.00028502,2]
[368516541,1751194290536,-234.0,0.00028602,2]
[368516542,1751194290545,-234.0,0.00028641,2]
[368516543,1751194290554,-185.9,0.00028661,2]
[368516544,1751194290563,-370.08880266,0.000287,2]
[368516545,1751194290573,-383.87,0.000287,2]
[368516546,1751194290582,-234.0,0.00028714,2]
[368516547,1751194290591,-701.25,0.00028765,3]
[368516548,1751194290600,-964.67,0.00028765,3]
[368516549,1751194290609,-834.71,0.00028765,3]
[368516550,1751194290618,-1226.58,0.00028765,3]
[368516551,1751194290627,-1509.58,0.00028765,3]
[368516552,1751194290637,-490.0,0.00028765,3]
[368516553,1751194290647,-1004.2,0.00028765,3]
[368516554,1751194290656,-490.0,0.00028765,3]
[368516555,1751194290665,-1273.37,0.00028765,3]
[368516556,1751194290675,-1282.38,0.00028765,3]
[368516557,1751194290684,-838.34,0.00028765,3]
[368516558,1751194290693,-1305.15,0.00028765,3]
[368516559,1751194290703,-490.0,0.00028765,3]
[368516560,1751194290712,-490.0,0.00028765,3]
[368516561,1751194290722,-490.0,0.00028765,3]
[368516562,1751194290731,-936.47,0.00028765,3]
[368516563,1751194290741,-931.86,0.00028765,3]
[368516564,1751194290751,-587.9,0.00028765,3]
[368516565,1751194290760,-566.58,0.00028765,3]
[368516566,1751194290769,-490.0,0.00028765,3]
[368516567,1751194290779,-526.6,0.00028765,3]
[368516568,1751194290788,-490.0,0.00028765,3]
[368516569,1751194290798,-1109.31,0.00028765,3]
[368516570,1751194290807,-490.0,0.00028765,3]
[368516571,1751194290817,-1197.41,0.00028765,3]
[368516572,1751194290827,-643.14,0.00028765,3]
[368516573,1751194290836,-1261.79,0.00028765,3]
[368516574,1751194290845,-490.0,0.00028765,3]
[368516575,1751194290855,-1701.43,0.00028765,3]
[368516576,1751194290864,-1096.93,0.00028765,3]
[368516577,1751194290873,-527.61,0.00028765,3]
[368516578,1751194290882,-490.0,0.00028765,3]
[368516579,1751194290892,-490.0,0.00028765,3]
[368516580,1751194290901,-754.15,0.00028765,3]
[368516581,1751194290910,-490.0,0.00028765,3]
[368516582,1751194290919,-1787.33,0.00028765,3]
[368516583,1751194290928,-2078.89,0.00028765,3]
[368516584,1751194290937,-620.67,0.00028765,3]
[368516585,1751194290946,-1393.39,0.00028765,3]
[368516586,1751194290955,-1144.96,0.00028765,3]
[368516587,1751194290964,-1657.47,0.00028765,3]
[368516588,1751194290978,-534.8,0.00028765,3]
[368516589,1751194290987,-1096.85,0.00028765,3]
[368516590,1751194290996,-1495.26,0.00028765,3]
[368516591,1751194291005,-2028.27,0.00028765,3]
[368516592,1751194291014,-892.04,0.00028765,3]
[368516593,1751194291023,-800.8,0.00028765,3]
[368516594,1751194291032,-563.11,0.00028765,3]
[368516595,1751194291041,-803.4,0.00028765,3]
[368516596,1751194291050,-490.0,0.00028765,3]
[368516597,1751194291060,-1032.49,0.00028765,3]
[368516598,1751194291069,-818.54,0.00028765,3]
[368516599,1751194291078,-490.0,0.00028765,3]
[368516600,1751194291087,-490.0,0.00028765,3]
[368516601,1751194291096,-1748.61,0.00028765,3]
[368516602,1751194291104,-583.52,0.00028765,3]
[368516603,1751194291113,-1254.67,0.00028765,3]
[368516604,1751194291122,-1561.33,0.00028765,3]
[368516605,1751194291131,-717.28,0.00028765,3]
[368516606,1751194291140,-1235.81,0.00028765,3]
[368516607,1751194291149,-709.31,0.00028765,3]
[368516608,1751194291158,-1584.73,0.00028765,3]
[368516609,1751194291167,-1927.49,0.00028765,3]
[368516610,1751194291176,-1391.05,0.00028765,3]
[368516611,1751194291185,-921.6,0.00028765,3]
[368516612,1751194291194,-490.0,0.00028765,3]
[368516613,1751194291202,-546.89,0.00028765,3]
[368516614,1751194291212,-1532.66,0.00028765,3]
[368516615,1751194291221,-1121.28,0.00028765,3]
[368516616,1751194291230,-1915.65,0.00028765,3]
[368516617,1751194291239,-490.0,0.00028765,3]
[368516618,1751194291248,-490.0,0.00028765,3]
[368516619,1751194291257,-640.3,0.00028765,3]
[368516620,1751194291266,-496.11,0.00028765,3]
[368516621,1751194291275,-1207.27,0.00028765,3]
[368516622,1751194291284,-1080.57,0.00028765,3]
[368516623,1751194291293,-1626.37,0.00028765,3]
[368516624,1751194291302,-490.0,0.00028765,3]
[368516625,1751194291311,-1384.15,0.00028765,3]
[368516626,1751194291319,-627.27,0.00028765,3]
[368516627,1751194291328,-490.0,0.00028765,3]
[368516628,1751194291337,-964.86,0.00028765,3]
[368516629,1751194291346,-1224.5,0.00028765,3]
[368516630,1751194291355,-1005.99,0.00028765,3]
[368516631,1751194291365,-1042.94,0.00028765,3]
[368516632,1751194291374,-490.0,0.00028765,3]
[368516633,1751194291383,-490.0,0.00028765,3]
[368516634,1751194291392,-490.0,0.00028766,3]
[368516635,1751194291402,-490.0,0.00028766,3]
[368516636,1751194291412,-490.0,0.00028766,3]
[368516637,1751194291422,-227.55482593,0.00028766,3]
[368516638,1751194291432,-490.0,0.00028766,3]
[368516639,1751194291441,-490.0,0.00028766,3]
[368516640,1751194291452,-490.0,0.00028766,3]
[368516641,1751194291462,-300.0,0.00028766,3]
[368516642,1751194291471,-490.0,0.00028766,3]
[368516643,1751194291481,-490.0,0.00028766,3]
[368516644,1751194291491,-490.0,0.00028766,3]
[368516645,1751194291500,-490.0,0.00028766,3]
[368516646,1751194291510,-490.0,0.00028766,3]
[368516647,1751194291519,-490.0,0.00028766,3]
[368516648,1751194291528,-490.0,0.00028766,3]
[368516649,1751194291539,-490.0,0.00028766,3]
[368516650,1751194291548,-490.0,0.00028766,3]
[368516651,1751194291557,-686.32,0.00028766,3]
[368516652,1751194291567,-502.71979335,0.00028766,3]
[368516653,1751194291576,-490.0,0.00028766,3]
[368516654,1751194291585,-690.4,0.00028766,3]
[368516655,1751194291672,-490.0,0.00028766,3]
[368516656,1751194291681,-490.0,0.00028766,3]
[368516657,1751194291691,-513.52,0.00028766,3]
[368516658,1751194291701,-490.0,0.00028766,3]
[368516659,1751194291711,-490.0,0.00028766,3]
[368516660,1751194291721,-490.0,0.00028766,3]
[368516661,1751194291730,-490.0,0.00028766,3]
[368516662,1751194291740,-406.32710233,0.00028766,3]
[368516663,1751194291749,-600.29,0.00028766,3]
[368516664,1751194291758,-490.0,0.00028766,3]
[368516665,1751194291767,-490.0,0.00028766,3]
[368516666,1751194291777,-490.0,0.00028766,3]
[368516667,1751194291786,-490.0,0.00028766,3]
[368516668,1751194291796,-490.0,0.00028766,3]
[368516669,1751194291805,-490.0,0.00028766,3]
[368516670,1751194291814,-490.0,0.00028766,3]
[368516671,1751194291824,-490.0,0.00028766,3]
[368516672,1751194291833,-490.0,0.00028766,3]
[368516673,1751194291842,-490.0,0.00028766,3]
[368516674,1751194291851,-490.0,0.00028766,3]
[368516675,1751194291861,-490.0,0.00028766,3]
[368516676,1751194291870,-490.0,0.00028766,3]
[368516677,1751194291879,-492.71,0.00028766,3]
[368516678,1751194291888,-490.0,0.00028766,3]
[368516679,1751194291897,-490.0,0.00028766,3]
[368516680,1751194291906,-490.0,0.00028767,3]
[368516681,1751194291916,-490.0,0.00028767,3]
[368516682,1751194291925,-490.0,0.00028767,3]
[368516683,1751194291934,-589.75,0.00028767,3]
[368516684,1751194291943,-153.46538,0.00028767,3]
[368516685,1751194291952,-329.205099,0.00028767,3]
[368516686,1751194291961,-490.0,0.00028767,3]
[368516687,1751194291974,-490.0,0.00028767,3]
[368516688,1751194291984,-490.0,0.00028767,3]
[368516689,1751194291993,-377.98079402,0.00028767,3]
[368516690,1751194292002,-490.0,0.00028767,3]
[368516691,1751194292011,-361.2276145,0.00028767,3]
[368516692,1751194292020,-490.0,0.00028767,3]
[368516693,1751194292029,-490.0,0.00028767,3]
[368516694,1751194292039,-490.0,0.00028767,3]
[368516695,1751194292049,-255.0030251,0.00028767,3]
[368516696,1751194292058,-490.0,0.00028767,3]
[368516697,1751194292067,-490.0,0.00028767,3]
[368516698,1751194292076,-554.36,0.00028767,3]
[368516699,1751194292086,-490.0,0.00028767,3]
[368516700,1751194292094,-490.0,0.00028767,3]
[368516701,1751194292103,-490.0,0.00028767,3]
[368516702,1751194292112,-490.0,0.00028767,3]
[368516703,1751194292121,-632.51,0.00028767,3]
[368516704,1751194292130,-490.0,0.00028767,3]
[368516705,1751194292139,-490.0,0.00028767,3]
[368516706,1751194292148,-532.4,0.00028767,3]
[368516707,1751194292158,-490.0,0.00028767,3]
[368516708,1751194292168,-490.0,0.00028767,3]
[368516709,1751194292178,-157.072167,0.00028767,3]
[368516710,1751194292187,-508.12,0.00028767,3]
[368516711,1751194292196,-490.0,0.00028767,3]
[368516712,1751194292204,-490.0,0.00028767,3]
[368516713,1751194292214,-701.73,0.00028767,3]
[368516714,1751194292223,-490.0,0.00028767,3]
[368516715,1751194292232,-490.0,0.00028767,3]
[368516716,1751194292241,-490.0,0.00028767,3]
[368516717,1751194292250,-490.0,0.00028767,3]
[368516718,1751194292259,-764.95,0.00028767,3]
[368516719,1751194292269,-490.0,0.00028767,3]
[368516720,1751194292277,-441.94117241,0.00028767,3]
[368516721,1751194292286,-490.0,0.00028767,3]
[368516722,1751194292295,-490.0,0.00028767,3]
[368516723,1751194292304,-490.0,0.00028767,3]
[368516724,1751194292313,-356.63944701,0.00028767,3]
[368516725,1751194292322,-490.0,0.00028767,3]
[368516726,1751194292331,-953.82,0.00028767,3]
[368516727,1751194292340,-490.0,0.00028767,3]
[368516728,1751194292349,-603.44,0.00028767,3]
[368516729,1751194292358,-633.93,0.00028767,3]
[368516730,1751194292367,-490.0,0.00028767,3]
[368516731,1751194292376,-864.91,0.00028767,3]
[368516732,1751194292385,-490.0,0.00028767,3]
[368516733,1751194292395,-497.74,0.00028767,3]
[368516734,1751194292404,-490.0,0.00028767,3]
[368516735,1751194292413,-490.0,0.00028767,3]
[368516736,1751194292422,-490.0,0.00028767,3]
[368516737,1751194292431,-490.0,0.00028767,3]
[368516738,1751194292444,-490.0,0.00028767,3]
[368516739,1751194292453,-490.0,0.00028767,3]
[368516740,1751194292462,-756.13,0.00028767,3]
[368516741,1751194292472,-490.0,0.00028767,3]
[368516742,1751194292481,-542.44,0.00028767,3]
[368516743,1751194292490,-1332.54,0.00028767,3]
[368516744,1751194292499,-863.82,0.00028767,3]
[368516745,1751194292508,-171.68794925,0.00028767,3]
[368516746,1751194292517,-635.09710835,0.00028767,3]
[368516747,1751194292526,-490.0,0.00028767,3]
[368516748,1751194292535,-591.84,0.00028767,3]
[368516749,1751194292544,-490.0,0.00028767,3]
[368516750,1751194292554,-490.0,0.00028767,3]
[368516751,1751194292563,-665.61,0.00028767,3]
[368516752,1751194292572,-769.64,0.00028767,3]
[368516753,1751194292581,-490.0,0.00028767,3]
[368516754,1751194292590,-555.79,0.00028767,3]
[368516755,1751194292599,-490.0,0.00028767,3]
[368516756,1751194292608,-490.0,0.00028767,3]
[368516757,1751194292617,-627.43,0.00028767,3]
[368516758,1751194292626,-491.22,0.00028767,3]
[368516759,1751194292635,-490.0,0.00028767,3]
[368516760,1751194292646,-617.55,0.00028767,3]
[368516761,1751194292655,-490.0,0.00028767,3]
[368516762,1751194292666,-1124.81,0.00028767,3]
[368516763,1751194292675,-621.58,0.00028767,3]
[368516764,1751194292685,-1265.66,0.00028767,3]
[368516765,1751194292694,-1066.44,0.00028767,3]
[368516766,1751194292705,-490.0,0.00028767,3]
[368516767,1751194292714,-606.66,0.00028767,3]
[368516768,1751194292723,-1063.39,0.00028767,3]
[368516769,1751194292732,-1075.06,0.00028767,3]
[368516770,1751194292742,-596.29,0.00028767,3]
[368516771,1751194292752,-490.0,0.00028767,3]
[368516772,1751194292761,-490.0,0.00028767,3]
[368516773,1751194292770,-620.94,0.00028767,3]
[368516774,1751194292780,-490.0,0.00028767,3]
[368516775,1751194292789,-490.0,0.00028767,3]
[368516776,1751194292799,-490.0,0.00028767,3]
[368516777,1751194292809,-667.18,0.00028767,3]
[368516778,1751194292820,-684.75,0.00028767,3]
[368516779,1751194292829,-687.84,0.00028767,3]
[368516780,1751194292839,-490.0,0.00028767,3]
[368516781,1751194292849,-1683.35,0.00028767,3]
[368516782,1751194292858,-925.73,0.00028767,3]
[368516783,1751194292867,-490.0,0.00028767,3]
[368516784,1751194292876,-521.5,0.00028767,3]
[368516785,1751194292885,-884.56,0.00028767,3]
[368516786,1751194292894,-1254.49,0.00028767,3]
[368516787,1751194292903,-558.94,0.00028767,3]
[368516788,1751194292912,-490.0,0.00028767,3]
[368516789,1751194292922,-1250.48,0.00028767,3]
[368516790,1751194292930,-490.0,0.00028767,3]
[368516791,1751194292939,-490.0,0.00028767,3]
[368516792,1751194292948,-490.0,0.00028767,3]
[368516793,1751194292957,-681.06,0.00028767,3]
[368516794,1751194292967,-877.54,0.00028767,3]
[368516795,1751194292980,-490.0,0.00028767,3]
[368516796,1751194292989,-1517.03,0.00028767,3]
[368516797,1751194293000,-490.0,0.00028767,3]
[368516798,1751194293009,-490.0,0.00028767,3]
[368516799,1751194293020,-490.0,0.00028767,3]
[368516800,1751194293030,-586.92,0.00028767,3]
[368516801,1751194293040,-760.76,0.00028767,3]
[368516802,1751194293051,-490.0,0.00028767,3]
[368516803,1751194293062,-490.0,0.00028767,3]
[368516804,1751194293072,-1020.66,0.00028767,3]
[368516805,1751194293082,-1866.57,0.00028767,3]
[368516806,1751194293092,-1288.09,0.00028767,3]
[368516807,1751194293102,-776.5,0.00028767,3]
[368516808,1751194293112,-490.0,0.00028767,3]
[368516809,1751194293122,-490.0,0.00028767,3]
[368516810,1751194293131,-640.5,0.00028767,3]
[368516811,1751194293141,-490.0,0.00028767,3]
[368516812,1751194293150,-499.32,0.00028767,3]
[368516813,1751194293160,-499.32,0.00028767,3]
[368516814,1751194293170,-689.12,0.00028767,3]
[368516815,1751194293179,-759.09,0.00028767,3]
[368516816,1751194293188,-622.49,0.00028767,3]
[368516817,1751194293197,-930.36,0.00028767,3]
[368516818,1751194293206,-490.0,0.00028767,3]
[368516819,1751194293215,-1920.98,0.00028767,3]